Cogmind - Beta 17.1 @@@ ROGUE MODE // 2026.08.28 @ 17:19:18 Player: Limbermonkey Result: Destroyed by 5T-ETW(R) with Subdweller Beam Cannon Performance ------------- Evolutions (0) 0 Regions Visited (2) 400 Robots Destroyed (2) 10 Value Destroyed (60) 60 Prototype IDs (0) 0 Alien Tech Used (0) 0 Bonus (0) 0 TOTAL SCORE: 470 Bonus ------- None Cogmind --------- Core Integrity 0/250 Matter 241/300 Energy 172/250 System Corruption 0% Temperature Cool (9) Movement Core (300) Ox5 Location -10/Subcaves Parts ------- > --- POWER (1) -------- Ion Engine > --- PROPULSION (2) --- (None) > --- UTILITY (2) ------ Medium Storage Unit Signal Interpreter > --- WEAPON (2) ------- Mining Claw > --- INVENTORY (10) --- Subdweller Power Source Compact Wheel Small Storage Unit Sensor Array Subdweller Machine Gun Grenade Launcher Grenade Launcher Datajack Mining Claw Peak State ------------ > --- POWER ------------ Ion Engine > --- PROPULSION ------- Aluminum Leg Aluminum Leg > --- UTILITY ---------- Small Storage Unit Medium Storage Unit > --- WEAPON ----------- Assault Rifle Light Assault Rifle > --- INVENTORY -------- Ion Engine Light Treads Light Treads Wheel Compact Wheel Small Laser Mining Claw Mining Claw [Rating: 7] Favorites ----------- Power Ion Engine Engine Ion Engine Propulsion Aluminum Leg Leg Aluminum Leg Hover Unit Hover Unit Utility Medium Storage Unit Storage Medium Storage Unit Processor Signal Interpreter Weapon Light Assault Rifle Energy Gun Small Laser Ballistic Gun Light Assault Rifle Slashing Weapon Mining Claw Build | -11 -10 -10 ------- Run | Yrd Mat Sub Slots Evolved . | . . . Power . | . . . Propulsion . | . . . Utility . | . . . Weapon . | . . . Parts Attached 7 | . 5 2 Power 1 | . . 1 Engine 1 | . . 1 Core . | . . . Reactor . | . . . Propulsion 2 | . 2 . Treads . | . . . Leg . | . . . Wheel . | . . . Hover 2 | . 2 . Flight . | . . . Utility 2 | . 2 . Device . | . . . Storage 1 | . 1 . Processor 1 | . 1 . Hackware . | . . . Protection . | . . . Artifact . | . . . Weapon 2 | . 1 1 Energy Gun 1 | . . 1 Energy Cannon . | . . . Ballistic Gun . | . . . Ballistic Cannon . | . . . Launcher . | . . . Special Weapon . | . . . Impact Weapon . | . . . Slashing Weapon 1 | . 1 . Piercing Weapon . | . . . Special Melee Weapon . | . . . Unidentified Prototypes . | . . . Parts Lost 5 | . . 5 Power 1 | . . 1 Propulsion 2 | . . 2 Utility . | . . . Weapon 2 | . . 2 Highest Loss Streak 5 | . . 5 To Critical Strikes . | . . . Average Backups 8 | . 8 9 Power 1 | . 1 1 Propulsion 1 | . 2 1 Utility 1 | . 1 2 Weapon 3 | . 3 3 Tool/Special . | . . . Unused Backups 8 | . 2 6 Power . | . . . Propulsion . | . . . Utility 2 | . . 2 Weapon 5 | . 2 3 Tool/Special 1 | . . 1 Average Slot Usage (%) 90 | . 87 96 Engine 14 | . 14 14 Leg 13 | . 21 . Hover 13 | . 6 24 Storage 14 | . 14 14 Processor 6 | . 2 14 Ballistic Gun 18 | . 21 13 Slashing Weapon 9 | . 7 14 Peak Build Rating 7 | . 7 7 Average Rating 6 | . 6 6 On Entrance 6 | 6 6 7 Avg Prop Armor Cover (%) . | . . . Naked Turns . | . . . Heaviest Build 18 | 13 18 18 Greatest Support 20 | 20 20 12 Greatest Overweight (x) 2 | . 2 2 Average Overweight (x) . | . . 1 Largest Inventory Capacity 10 | . 10 10 Average Capacity 9 | . 9 10 Most Carried 10 | . 10 10 Average Carried 8 | . 8 9 Final Capacity 10 | 8 10 10 Final Carried 9 | 6 9 9 Class Distribution -------------------- 100% | Mutant Dominant Class ---------------- Mutant | -10/Materials Mutant | -10/Subcaves Resources | -11 -10 -10 ----------- Run | Yrd Mat Sub Matter Collected 200 | 200 . . Remotely . | . . . Salvage Created 61 | . 61 . Parts 5 | . 5 . Haulers Intercepted . | . . . Recyclers Shooed . | . . . Parts Field Recycled . | . . . Retrieved Matter . | . . . Parts Self-Destructed . | . . . Prevented . | . . . Parts Restored . | . . . Kills | -11 -10 -10 ------- Run | Yrd Mat Sub Combat Hostiles Destroyed 1 | . 1 . Melee 1 | . 1 . Classes Destroyed 2 | . 2 . Operator 1 | . 1 . Grunt 1 | . 1 . Best Kill Streak 1 | . 1 . Combat Bots Only 1 | . 1 . Max Kills in Single Turn 1 | . 1 . Gunslinging . | . . . Exploded . | . . . Melee 1 | . 1 . Uniques/NPCs Destroyed . | . . . Combat | -11 -10 -10 -------- Run | Yrd Mat Sub Hostile Shots Fired 41 | . 5 36 Missed 13 | . 2 11 Hits 28 | . 3 25 Projectile 28 | . 3 25 Damage Taken 636 | . 33 603 Core 272 | . 12 260 Absorbed by Shields . | . . . Core Remaining (%) 100 | 100 . . Volleys Fired 6 | . 1 5 Largest 2 | . 2 1 Hottest 40 | . 40 40 Shots Fired 7 | . 2 5 Gun 7 | . 2 5 Cannon . | . . . Launcher . | . . . Special . | . . . Kinetic 2 | . 2 . Thermal 5 | . . 5 Explosive . | . . . Electromagnetic . | . . . Robot Hit Streak 5 | . . 5 Robot Miss Streak 2 | . 2 . Penetration Max . | . . . Secondary Targets . | . . . Shots Hit Robots 15 | . 2 13 Core Hits 5 | . 2 3 Critical Kills . | . . . Critical Parts Destroyed . | . . . Critical Strikes . | . . . Melee Attacks 20 | . 12 8 Impact . | . . . Slashing 20 | . 12 8 Piercing . | . . . Sneak Attacks 1 | . 1 . Combat Hostiles . | . . . Follow-up Attacks . | . . . Damage Inflicted 264 | . 86 178 Guns 54 | . . 54 Cannons . | . . . Explosions . | . . . Melee 210 | . 86 124 Ramming . | . . . Kinetic . | . . . Thermal 54 | . . 54 Explosive . | . . . Electromagnetic . | . . . Impact . | . . . Slashing 210 | . 86 124 Piercing . | . . . Highest Corruption . | . . . Average Corruption . | . . . Corruption Purged . | . . . Corruption Blocked . | . . . Overload Shots . | . . . Overflow Damage . | . . . Projectiles . | . . . Explosions . | . . . Melee . | . . . Knockbacks . | . . . Impact . | . . . Kinetic . | . . . Secondary . | . . . Self-Inflicted Damage . | . . . Shots . | . . . Rammed . | . . . Targets Rammed . | . . . Kicked . | . . . Crushed . | . . . Highest Temperature . | . . . Average Temperature . | . . . Received Heat Transfer 126 | . 18 108 Siege Activations . | . . . Martial Activations . | . . . Shielding Activations . | . . . Robots Disrupted . | . . . Combat Hostiles . | . . . Robots Corrupted . | . . . Combat Hostiles . | . . . Parts Fried . | . . . Impact Corruptions . | . . . Robots Melted . | . . . Combat Hostiles . | . . . Parts Melted . | . . . Heat Transferred 125 | . . 125 Parts Sabotaged . | . . . Parts Stolen . | . . . Parts Stripped . | . . . Power Chain Reactions . | . . . Alert | -11 -10 -10 ------- Run | Yrd Mat Sub Maximum Alert Level . | . . . Low Security (%) 100 | . 100 . Level 1 . | . . . Level 2 . | . . . Level 3 . | . . . Level 4 . | . . . Level 5 . | . . . High Security . | . . . Max Security . | . . . Peak Influence 30 | . 30 . Initial . | . . . Average 4 | . 4 . Influence Increases 85 | . 85 . Destroy 0b10 Robot/C 20 | . 20 . Destroy 0b10 Robot/NC 5 | . 5 . Destroy Leader 10 | . 10 . Successful Hack 33 | . 33 . Disable Machine 15 | . 15 . Destroy Structure 2 | . 2 . Influence Decreases 85 | . 85 . Time Decay 85 | . 85 . Squads Dispatched 2 | . 2 . Investigation . | . . . Extermination . | . . . Reinforcement 2 | . 2 . Assault . | . . . Garrison . | . . . Intercept . | . . . Searches Triggered . | . . . Construction Impeded . | . . . Haulers Reinforced . | . . . Active Scanning Responses . | . . . Cargo Convoy Interrupts . | . . . Stealth | -11 -10 -10 --------- Run | Yrd Mat Sub Distress Signals . | . . . Communications Jammed . | . . . Distress Signals . | . . . Times Spotted 7 | . 5 2 Peak Tracking Total 3 | . 3 2 Tactical Retreats . | . . . Traps | -11 -10 -10 ------- Run | Yrd Mat Sub Traps Triggered . | . . . Indirectly . | . . . Trap Hack Attempts . | . . . Triggered . | . . . Disarmed . | . . . Reprogrammed . | . . . Reused . | . . . Traps Extracted . | . . . Installed . | . . . Triggered . | . . . Machines | -11 -10 -10 ---------- Run | Yrd Mat Sub Machines Disabled 1 | . 1 . Max in Single Turn 1 | . 1 . Machines Repaired . | . . . Machines Dismantled . | . . . Machines Sabotaged . | . . . Overloaded Fab Kills . | . . . Hacking | -11 -10 -10 --------- Run | Yrd Mat Sub Machines Accessed 4 | . 4 . Terminals 4 | . 4 . Fabricators . | . . . Repair Stations . | . . . Recycling Units . | . . . Scanalyzers . | . . . Garrison Access . | . . . Total Hacks 16 | . 16 . Successful 8 | . 8 . Failed 8 | . 8 . Catastrophic 1 | . 1 . Database Lockouts . | . . . Manual 16 | . 16 . Terminals 16 | . 16 . Fabricators . | . . . Repair Stations . | . . . Recycling Units . | . . . Scanalyzers . | . . . Garrison Access . | . . . Terminal Hacks 4 | . 4 . Part Schematic 2 | . 2 . Terminal Index 1 | . 1 . Zone Layout 1 | . 1 . Fabricator Hacks . | . . . Repair Station Hacks . | . . . Recycling Unit Hacks . | . . . Scanalyzer . | . . . Garrison Access Hacks . | . . . Unauthorized Hacks 4 | . 4 . Terminals 4 | . 4 . Botnet 4 | . 4 . Fabricators . | . . . Repair Stations . | . . . Recycling Units . | . . . Scanalyzers . | . . . Garrison Access . | . . . Data Cores Recovered . | . . . Used . | . . . Hacking Detections 4 | . 4 . Full Trace Events . | . . . Feedback Events . | . . . Feedback Blocked . | . . . Robot Schematics Acquired . | . . . Robots Built . | . . . Authchips . | . . . Time . | . . . Total Robot Build Rating . | . . . Part Schematics Acquired 2 | . 2 . Parts Built . | . . . Authchips . | . . . Time . | . . . Total Part Build Rating . | . . . Part Studies Acquired . | . . . Parts Repaired . | . . . Time . | . . . Parts Recycled . | . . . Recycled Matter . | . . . Retrieved Matter . | . . . Retrieved Components . | . . . Parts Scanalyzed . | . . . Part Schematics Acquired . | . . . Parts Damaged . | . . . Bothacking | -11 -10 -10 ------------ Run | Yrd Mat Sub Used RIF Installer . | . . . Robots Hacked . | . . . Non-combat . | . . . Combat . | . . . Robot Hacks Applied . | . . . Relay Couplers Released . | . . . Fabnet Peak Effective % . | . . . Robots Rewired . | . . . Allies Hacked . | . . . Hacks Repelled . | . . . Allies | -11 -10 -10 -------- Run | Yrd Mat Sub Total Allies . | . . . Largest Group . | . . . Highest-Rated Group . | . . . Highest-Rated Ally . | . . . Total Orders . | . . . Ally Attacks . | . . . Total Damage . | . . . Kills . | . . . Allies Corrupted . | . . . Allies Melted . | . . . Intel | -11 -10 -10 ------- Run | Yrd Mat Sub Active Infowar (turns) . | . . . Robot Analysis Total . | . . . Derelict Logs Recovered 1 | . . 1 Drone Launches . | . . . Drone Recoveries . | . . . Exploration | -11 -10 -10 ------------- Run | Yrd Mat Sub Turns Passed 548 | . 330 218 Spaces Moved 372 | 1 223 148 Core . | . . . Treads . | . . . Legs 186 | 1 185 . Wheels . | . . . Hover 186 | . 38 148 Flight . | . . . Fastest Speed 116 | 120 116 116 Average Speed 119 | 120 119 117 Slowest Speed 190 | 120 190 180 Overloaded Moves . | . . . Propulsion Burnouts . | . . . Robots Hopped . | . . . Potential Cave-ins . | . . . Cave-ins Triggered . | . . . Exploration Rate (%) 18 | 2 40 14 Regions Visited 2 Branch Regions 1 Pre-discovered Areas . | . . . Known Exits Taken 1 | . 1 . Unknown Exits Taken 1 | 1 . . Scrap Searched . | . . . Spaces Dug 2 | . 2 . Terrain Destroyed 2 | . 2 . Melee 2 | . 2 . Projectile . | . . . AOE . | . . . Terrain Rammed . | . . . Walls Destroyed . | . . . Machines Disabled . | . . . Actions | -11 -10 -10 --------- Run | Yrd Mat Sub Total 433 | . 261 172 Wait 14 | . 5 9 Move 370 | . 222 148 Hop . | . . . Pick Up 7 | . 7 . Fast Attach 4 | . 4 . Attach 3 | . 1 2 Detach 1 | . 1 . Swap 1 | . 1 . Drop 7 | . 7 . Fire 6 | . 1 5 Melee 20 | . 12 8 Ram . | . . . Kick . | . . . Crush . | . . . Escape Stasis . | . . . Rewire . | . . . Trap . | . . . Miscellaneous . | . . . Route ------- -11/Scrapyard -10/Materials (discovered 2 exits: *Mat / *Sub) -10/Subcaves History --------- Turn | Location | Event 1 | -11/Scrapyard | Discovered new exit (range 0) 1 | -11/Scrapyard | Entered Materials 245 | -10/Materials | Discovered new exit (range 16) 288 | -10/Materials | Identified exit to Materials 307 | -10/Materials | Build established: Mutant 327 | -10/Materials | Discovered new exit (range 3) 330 | -10/Materials | Identified exit to Subcaves 331 | -10/Materials | Entered Subcaves 332 | -10/Subcaves | Approached by a straggling Scientist 436 | -10/Subcaves | Learned Materials emergency access door positions 534 | -10/Subcaves | Core integrity fell below 50% 544 | -10/Subcaves | Core integrity fell below 20% 549 | -10/Subcaves | Destroyed by 5T-ETW(R) with Subdweller Beam Cannon Last Messages --------------- back to the UFD." 4S-EFB(c): "I think it's somewhere west of here" 4S-EFB(c): "I think it's somewhere northwest of here" 00436_ Acquired derelict log, extracted data. Data stored: Materials emergency access points. 4S-EFB(c): "I think it's somewhere northwest of here" 00507_ Hover Unit destroyed. 00518_ 1T-WTQ(R) Sub. Power Source ripped off. 00520_ Hover Unit destroyed. 00527_ 1T-WTQ(R) Sub. Monowheel ripped off. 00530_ Lgt. Assault Rifle destroyed. 4S-EFB(c): "I think it's somewhere northwest of here" 00536_ Ion Engine destroyed. 00537_ Subatomizers dissect the Sub. Monowheel. 00542_ Sml. Laser destroyed. 00542_ 1T-WTQ(R) Sub. Machine Gun ripped off. 00548_ Destroyed Scrap Shield. Map ----- +----------------------------------------------------+ | ?????????????????????????????????????????????????? | | ?????????????????????????????????????????????????? | | ?????????????????????????????????????????????????? | | ?????????????????????????????????????????????????? | | ?????????????????????????????????????????????????? | | ?????????????????????????????????????????????????? | | ?????????????????????????????????????????????????? | | ?????????????????????????????????????????????????? | | ?????????????????????????????????????????????????? | | ?????????????????????????????????????????????????? | | ??????????????????????????????????????????????? ? | | ??????????????????????????????????????????????? | | ??????????????????????????????????????????????? | | ??????????????????????????????????????????????? | | ??????????????????????????????????????????????? | | ??????????????????????????????????????????????? ? | | ???????????????????##?##??????????????????????? ? | | ???????????????????? ## "?????????????????????# ? | | ??????????????????? ""???????????????????### #? | | ??????????????????"""" " ???????????????????# #? | | ??????????????????# """" ???????????????????? ## | | ?????????????????##"""" ????????????????????# # | | ?????????????????#"""" ##????????????###???# # | | ?????????????????# " R #???????????## ##### #? | | ??????????????????#"" ######?###### # ## | | ??????????????????#" R@ ## ### # | | ?????????????????# % # ### | | ?????????????????### ####### | | ???????????????????### #####?????# | | ?????????????????????# ###????????## | | ?????????????????????# ##?????????## | | ?????????????????????## ## #??????##### | | ?????????????????????# # # #?????## | | ?????????????????????## ? ## #;#????# | | ??????????????????????# #########?#????# | | ?????????????????????? ???????????????# | | ????????????????????? ???????????????# | | ???????????????????? # ???????????????## | | ???????????????????? ???????????????## | | ?????????????????????% ???????????????# | | ??????????????????????? ????????????????# | | ????????????????????????????????????????## ### | | ?????????????????????????????????????????##??# | | ?????????????????????????????????????????????## | | ?????????????????????????????????????????????## | | ?????????????????????????????????????????##### | | ????????????????????????????????????????## | | ????????????????????????????????????????# | | ????????????????????????????????????????# | | ???????????????????????????????????????# # | +----------------------------------------------------+ Best States ------------- Heat Dissipation 25 Energy Generation 10 Energy Capacity 250 Matter Stores 300 Matter Capacity 300 Sight Range 16 Terrain Scan Density 10 Evasion (%) 55 Item Schematics ----------------- Signal Interpreter | -10/Materials | Hacked Structural Scanner | -10/Materials | Hacked Robot Schematics ------------------ None Fabricated ------------ Nothing Repaired ---------- Nothing Studied --------- None Alien Tech Used ----------------- None Achievements -------------- None Challenges ------------ None Game ------ Seed LegArmorMallet Manual? 0 Play Time 00:14:16 Cumulative 37.3 hours Start 2026.08.28 @ 17:05:51 End 2026.08.28 @ 17:19:18 Sessions 1 Manual Loads 0 Difficulty Rogue Special Mode None Game No. 28 Rogue 6 Adventurer 22 Explorer 0 Win Type - Total 0 Types 0/0/0/0/0/0/0/0/0/0 Lore% 17 Gallery% 25 Achievement% 20 Wizard Run 0 Options --------- Layout 1 ASCII 1 Keyboard 1 Movement Numpad Keybinds 0 Fullscreen 1 Font 48/Smallcaps Map View 50x35 Zoom Use 0% Tactical HUD 1 Map Filters NONE Filters NONE Steam 1 RUN: 76d05a9e-de22-4303-9658-10ad2c89039f